fUST/lending_fUST_20250812
["ID","MTS","AMOUNT","RATE_DAILY","PERIOD"]
[378665468,1754950251940,-151.0,0.0002,2]
[378665469,1754950251950,-151.0,0.0002,2]
[378665470,1754950251959,-460.0,0.0002,2]
[378665471,1754950251968,-151.0,0.0002,2]
[378665472,1754950251978,-151.0,0.0002,2]
[378665473,1754950251987,-253.711868,0.0002,2]
[378665474,1754950251996,-253.711868,0.0002,2]
[378665475,1754950252006,-253.711868,0.0002,2]
[378665476,1754950252016,-253.711868,0.0002,2]
[378665477,1754950252026,-253.711868,0.0002,2]
[378665478,1754950252035,-253.711868,0.0002,2]
[378665479,1754950252045,-253.711868,0.0002,2]
[378665480,1754950252054,-253.711868,0.0002,2]
[378665481,1754950252064,-460.0,0.0002,2]
[378665482,1754950252073,-460.0,0.0002,2]
[378665483,1754950252083,-460.0,0.0002,2]
[378665484,1754950252092,-1160.16,0.0002,2]
[378665485,1754950252102,-460.0,0.0002,2]
[378665486,1754950252112,-877.59,0.0002,2]
[378665487,1754950252122,-460.0,0.0002,2]
[378665488,1754950252131,-460.0,0.0002,2]
[378665489,1754950252141,-224.95402397,0.0002,2]
[378665490,1754950252150,-460.0,0.0002,2]
[378665491,1754950252160,-524.33,0.0002,2]
[378665492,1754950252169,-460.0,0.0002,2]
[378665493,1754950252179,-679.67,0.0002,2]
[378665494,1754950252188,-460.0,0.0002,2]
[378665495,1754950252197,-460.0,0.0002,2]
[378665496,1754950252207,-460.0,0.0002,2]
[378665497,1754950252217,-460.0,0.0002,2]
[378665498,1754950252227,-594.28,0.0002,2]
[378665499,1754950252236,-601.09,0.0002,2]
[378665500,1754950252246,-2334.64,0.0002,2]
[378665501,1754950252255,-460.0,0.0002,2]
[378665502,1754950252264,-460.0,0.0002,2]
[378665503,1754950252274,-746.73,0.0002,2]
[378665504,1754950252283,-460.0,0.0002,2]
[378665505,1754950252292,-460.0,0.0002,2]
[378665506,1754950252302,-460.0,0.0002,2]
[378665507,1754950252312,-460.0,0.0002,2]
[378665508,1754950252323,-460.0,0.0002,2]
[378665509,1754950252332,-460.0,0.0002,2]
[378665510,1754950252342,-468.8,0.0002,2]
[378665511,1754950252351,-460.0,0.0002,2]
[378665512,1754950252361,-460.0,0.0002,2]
[378665513,1754950252371,-460.0,0.0002,2]
[378665514,1754950252381,-460.0,0.0002,2]
[378665515,1754950252390,-551.71,0.0002,2]
[378665516,1754950252400,-469.63,0.0002,2]
[378665517,1754950252410,-460.0,0.0002,2]
[378665518,1754950252420,-897.91,0.0002,2]
[378665519,1754950252430,-1076.44,0.0002,2]
[378665520,1754950252440,-460.0,0.0002,2]
[378665521,1754950252450,-460.0,0.0002,2]
[378665522,1754950252461,-460.0,0.0002,2]
[378665523,1754950252472,-622.52,0.0002,2]
[378665524,1754950252660,-460.0,0.0002,2]
[378665525,1754950252671,-912.26,0.0002,2]
[378665526,1754950252680,-460.0,0.0002,2]
[378665527,1754950252690,-151.0,0.0002,2]
[378665528,1754950252699,-460.0,0.0002,2]
[378665529,1754950252710,-151.0,0.0002,2]
[378665530,1754950252720,-151.0,0.0002,2]
[378665531,1754950252729,-460.0,0.0002,2]
[378665532,1754950252738,-460.0,0.0002,2]
[378665533,1754950252747,-460.0,0.0002,2]
[378665534,1754950252756,-460.0,0.0002,2]
[378665535,1754950252766,-538.8,0.0002,2]
[378665536,1754950252775,-241.448217,0.0002,2]
[378665537,1754950252784,-241.448217,0.0002,2]
[378665538,1754950252793,-241.448217,0.0002,2]
[378665539,1754950252802,-241.448217,0.0002,2]
[378665540,1754950252812,-241.448217,0.0002,2]
[378665541,1754950252821,-4600.42,0.0002,2]
[378665542,1754950252831,-241.448217,0.0002,2]
[378665543,1754950252839,-460.0,0.0002,2]
[378665544,1754950252850,-460.0,0.0002,2]
[378665545,1754950252859,-460.0,0.0002,2]
[378665546,1754950252869,-3120.27,0.0002,2]
[378665547,1754950252878,-460.0,0.0002,2]
[378665548,1754950252887,-1262.73,0.0002,2]
[378665549,1754950252896,-460.0,0.0002,2]
[378665550,1754950252905,-151.0,0.0002,2]
[378665551,1754950252914,-172.5513,0.0002,2]
[378665552,1754950252923,-563.99,0.0002,2]
[378665553,1754950252932,-1763.437769,0.0002,2]
[378665554,1754950252941,-1763.437769,0.0002,2]
[378665555,1754950252950,-1763.437769,0.0002,2]
[378665556,1754950252959,-151.0,0.0002,2]
[378665557,1754950252969,-151.0,0.0002,2]
[378665558,1754950252978,-151.0,0.0002,2]
[378665559,1754950252987,-1763.437769,0.0002,2]
[378665560,1754950252996,-1763.437769,0.0002,2]
[378665561,1754950253005,-1763.437769,0.0002,2]
[378665562,1754950253014,-561.52,0.0002,2]
[378665563,1754950253023,-460.0,0.0002,2]
[378665564,1754950253032,-460.0,0.0002,2]
[378665565,1754950253042,-460.0,0.0002,2]
[378665566,1754950253052,-151.0,0.0002,2]
[378665567,1754950253061,-151.0,0.0002,2]
[378665568,1754950253070,-151.0,0.0002,2]
[378665569,1754950253079,-460.0,0.0002,2]
[378665570,1754950253088,-761.03,0.0002,2]
[378665571,1754950253097,-460.0,0.0002,2]
[378665572,1754950253106,-634.09,0.0002,2]
[378665573,1754950253115,-460.0,0.0002,2]
[378665574,1754950253124,-460.0,0.0002,2]
[378665575,1754950253133,-460.0,0.0002,2]
[378665576,1754950253142,-313.06250127,0.0002,2]
[378665577,1754950253151,-826.21,0.0002,2]
[378665578,1754950253160,-197.069922,0.0002,2]
[378665579,1754950253169,-197.069922,0.0002,2]
[378665580,1754950253178,-197.069922,0.0002,2]
[378665581,1754950253188,-197.069922,0.0002,2]
[378665582,1754950253199,-197.069922,0.0002,2]
[378665583,1754950253218,-197.069922,0.0002,2]
[378665584,1754950253229,-151.0,0.0002,2]
[378665585,1754950253238,-1045.81,0.0002,2]
[378665586,1754950253248,-943.82,0.0002,2]
[378665587,1754950253258,-3701.3,0.0002,2]
[378665588,1754950253267,-460.0,0.0002,2]
[378665589,1754950253277,-809.7,0.0002,2]
[378665590,1754950253286,-2906.3,0.0002,2]
[378665591,1754950253295,-643.86,0.0002,2]
[378665592,1754950253305,-460.0,0.0002,2]
[378665593,1754950253316,-1487.59,0.0002,2]
[378665594,1754950253326,-550.62,0.0002,2]
[378665595,1754950253335,-460.0,0.0002,2]
[378665596,1754950253344,-460.0,0.0002,2]
[378665597,1754950253354,-460.0,0.0002,2]
[378665598,1754950253363,-460.0,0.0002,2]
[378665599,1754950253373,-1174.59,0.0002,2]
[378665600,1754950253383,-151.0,0.0002,2]
[378665601,1754950253394,-151.0,0.0002,2]
[378665602,1754950253404,-151.0,0.0002,2]
[378665603,1754950253413,-460.0,0.0002,2]
[378665604,1754950253423,-460.0,0.0002,2]
[378665605,1754950253432,-460.0,0.0002,2]
[378665606,1754950253442,-941.15,0.0002,2]
[378665607,1754950253452,-460.0,0.0002,2]
[378665608,1754950253461,-1048.49,0.0002,2]
[378665609,1754950253471,-533.13,0.0002,2]
[378665610,1754950253480,-2881.89,0.0002,2]
[378665611,1754950253490,-806.46,0.0002,2]
[378665612,1754950253500,-460.0,0.0002,2]
[378665613,1754950253509,-525.82,0.0002,2]
[378665614,1754950253519,-460.0,0.0002,2]
[378665615,1754950253528,-487.87,0.0002,2]
[378665616,1754950253538,-460.0,0.0002,2]
[378665617,1754950253548,-151.0,0.0002,2]
[378665618,1754950253557,-460.0,0.0002,2]
[378665619,1754950253567,-460.0,0.0002,2]
[378665620,1754950253577,-151.0,0.0002,2]
[378665621,1754950253586,-151.0,0.0002,2]
[378665622,1754950253596,-151.0,0.0002,2]
[378665623,1754950253606,-2299.09,0.0002,2]
[378665624,1754950253616,-460.0,0.0002,2]
[378665625,1754950253626,-460.0,0.0002,2]
[378665626,1754950253639,-591.88,0.0002,2]
[378665627,1754950253649,-460.0,0.0002,2]
[378665628,1754950253659,-160.0,0.0002,3]
[378665629,1754950253668,-460.0,0.0002,2]
[378665630,1754950253678,-941.59,0.0002,2]
[378665631,1754950253687,-460.0,0.0002,2]
[378665632,1754950253697,-1450.42,0.0002,2]
[378665633,1754950253707,-890.16,0.0002,2]
[378665634,1754950253718,-466.25,0.0002,2]
[378665635,1754950253727,-1160.53,0.0002,2]
[378665636,1754950253737,-1643.29,0.0002,2]
[378665637,1754950253747,-1075.94,0.0002,2]
[378665638,1754950253756,-460.0,0.0002,2]
[378665639,1754950253766,-151.0,0.0002,2]
[378665640,1754950253775,-460.0,0.0002,2]
[378665641,1754950253784,-151.0,0.0002,2]
[378665642,1754950253794,-151.0,0.0002,2]
[378665643,1754950253803,-151.0,0.0002,2]
[378665644,1754950253812,-555.21,0.0002,2]
[378665645,1754950253822,-460.0,0.0002,2]
[378665646,1754950253831,-1868.74,0.0002,2]
[378665647,1754950253840,-586.29,0.0002,2]
[378665648,1754950253850,-1451.28,0.0002,2]
[378665649,1754950253859,-2020.97,0.0002,2]
[378665650,1754950253870,-460.0,0.0002,2]
[378665651,1754950253879,-566.69,0.0002,2]
[378665652,1754950253889,-11449.43,0.0002,2]
[378665653,1754950253899,-151.0,0.0002,2]
[378665654,1754950253909,-151.0,0.0002,2]
[378665655,1754950253918,-151.0,0.0002,2]
[378665656,1754950253927,-510.8,0.0002,2]
[378665657,1754950253936,-460.0,0.0002,2]
[378665658,1754950253946,-787.05,0.0002,2]
[378665659,1754950253958,-151.0,0.0002,2]
[378665660,1754950253966,-460.0,0.0002,2]
[378665661,1754950253975,-151.0,0.0002,2]
[378665662,1754950253984,-299.435646,0.0002,2]
[378665663,1754950253993,-460.0,0.0002,2]
[378665664,1754950254002,-4437.45,0.0002,2]
[378665665,1754950254011,-151.0,0.0002,2]
[378665666,1754950254020,-209.595268,0.0002,2]
[378665667,1754950254028,-460.0,0.0002,2]
[378665668,1754950254038,-1174.14,0.0002,2]
[378665669,1754950254048,-1035.9,0.0002,2]
[378665670,1754950254056,-460.0,0.0002,2]
[378665671,1754950254065,-460.0,0.0002,2]
[378665672,1754950254075,-2016.64646436,0.0002,2]
[378665673,1754950254084,-460.0,0.0002,2]
[378665674,1754950254093,-460.0,0.0002,2]
[378665675,1754950254102,-460.0,0.0002,2]
[378665676,1754950254111,-1021.11,0.0002,2]
[378665677,1754950254120,-460.0,0.0002,2]
[378665678,1754950254129,-589.22,0.0002,2]
[378665679,1754950254138,-856.03,0.0002,2]
[378665680,1754950254148,-1867.34,0.0002,2]
[378665681,1754950254157,-460.0,0.0002,2]
[378665682,1754950254166,-654.82,0.0002,2]
[378665683,1754950254175,-460.0,0.0002,2]
[378665684,1754950254184,-460.0,0.0002,2]
[378665685,1754950254194,-513.21,0.0002,2]
[378665686,1754950254203,-671.41,0.0002,2]
[378665687,1754950254213,-2634.21,0.0002,2]
[378665688,1754950254222,-4290.54,0.0002,2]
[378665689,1754950254231,-460.0,0.0002,2]
[378665690,1754950254241,-801.27,0.0002,2]
[378665691,1754950254250,-1187.32,0.0002,2]
[378665692,1754950254259,-460.0,0.0002,2]
[378665693,1754950254269,-307.377732,0.0002,2]
[378665694,1754950254278,-307.377732,0.0002,2]
[378665695,1754950254287,-611.42,0.0002,2]
[378665696,1754950254297,-307.377732,0.0002,2]
[378665697,1754950254306,-3505.5,0.0002,2]
[378665698,1754950254315,-460.0,0.0002,2]
[378665699,1754950254324,-711.17,0.0002,2]
[378665700,1754950254334,-307.377732,0.0002,2]
[378665701,1754950254343,-307.377732,0.0002,2]
[378665702,1754950254352,-1072.74,0.0002,2]
[378665703,1754950254361,-307.377732,0.0002,2]
[378665704,1754950254371,-505.93,0.0002,2]
[378665705,1754950254380,-1277.09,0.0002,2]
[378665706,1754950254389,-2343.71,0.0002,2]
[378665707,1754950254398,-534.51,0.0002,2]
[378665708,1754950254407,-505.51,0.0002,2]
[378665709,1754950254417,-2497.07,0.0002,2]
[378665710,1754950254426,-782.72,0.0002,2]
[378665711,1754950254435,-460.0,0.0002,2]
[378665712,1754950254445,-551.82,0.0002,2]
[378665713,1754950254454,-662.59,0.0002,2]
[378665714,1754950254463,-4000.0,0.0002,4]
[378665715,1754950254472,-509.85,0.0002,2]
[378665716,1754950254482,-460.0,0.0002,2]
[378665717,1754950254492,-460.0,0.0002,2]
[378665718,1754950254501,-613.29,0.0002,2]
[378665719,1754950254511,-460.0,0.0002,2]
[378665720,1754950254520,-1801.27,0.0002,2]
[378665721,1754950254529,-460.0,0.0002,2]
[378665722,1754950254539,-561.59,0.0002,2]
[378665723,1754950254549,-460.0,0.0002,2]
[378665724,1754950254558,-1580.92,0.0002,2]
[378665725,1754950254567,-1068.46,0.0002,2]
[378665726,1754950254576,-460.0,0.0002,2]
[378665727,1754950254586,-779.86,0.0002,2]
[378665728,1754950254595,-460.0,0.0002,2]
[378665729,1754950254605,-460.0,0.0002,2]
[378665730,1754950254614,-535.54,0.0002,2]
[378665731,1754950254624,-168.0,0.00020003,2]
[378665732,1754950254635,-646.0,0.00020018,2]
[378665733,1754950254644,-500.0,0.00020021,2]
[378665734,1754950254653,-1000.0,0.00020021,2]
[378665735,1754950254663,-1000.0,0.00020021,2]
[378665736,1754950254673,-1000.0,0.00020021,2]
[378665737,1754950254682,-1000.0,0.00020021,2]
[378665738,1754950254692,-1000.0,0.00020021,2]
[378665739,1754950254701,-1000.0,0.00020021,2]
[378665740,1754950254712,-1000.0,0.00020021,2]
[378665741,1754950254726,-1000.0,0.00020021,2]
[378665742,1754950254739,-1000.0,0.00020021,2]
[378665743,1754950254752,-1000.0,0.00020021,2]
[378665744,1754950254764,-646.0,0.00020047,2]
[378665745,1754950254775,-646.0,0.00020048,2]
[378665746,1754950254786,-646.0,0.00020074,2]
[378665747,1754950254797,-1472.0,0.0002008,2]
[378665748,1754950254809,-151.0,0.0002008,2]
[378665749,1754950254821,-228.517911,0.0002008,2]
[378665750,1754950254832,-168.0,0.00020083,2]
[378665751,1754950254844,-300.0,0.00020086,2]
[378665752,1754950254856,-608.25991,0.00020187,2]
[378665753,1754950254868,-200.0,0.000202,2]
[378665754,1754950254881,-2001.15714568,0.000202,3]
[378665755,1754950254893,-151.0,0.000202,3]
[378665756,1754950254905,-646.0,0.00020236,2]
[378665757,1754950254917,-1500.0,0.00020268,2]
[378665758,1754950254929,-1500.0,0.00020268,2]
[378665759,1754950254940,-500.0,0.00020268,2]
[378665760,1754950254952,-1500.0,0.00020268,2]
[378665761,1754950254963,-177.852935,0.0002027,2]
[378665762,1754950254974,-454.21824,0.0002027,5]
[378665763,1754950254985,-505.25769152,0.00020273,2]
[378665764,1754950254997,-400.0,0.00020273,2]
[378665765,1754950255009,-151.0,0.00020273,2]
[378665766,1754950255020,-151.0,0.00020273,2]
[378665767,1754950255031,-151.0,0.00020273,2]
[378665768,1754950255041,-151.0,0.00020273,2]
[378665769,1754950255050,-460.0,0.00020273,2]
[378665770,1754950255063,-151.0,0.00020273,2]
[378665771,1754950255073,-151.0,0.00020273,2]
[378665772,1754950255084,-151.0,0.00020273,2]
[378665773,1754950255096,-152.67255641,0.00020273,2]
[378665774,1754950255107,-151.0,0.00020273,2]
[378665775,1754950255119,-500.0,0.00020273,2]
[378665776,1754950255130,-151.0,0.00020273,2]
[378665777,1754950255146,-151.0,0.00020273,2]
[378665778,1754950255158,-151.0,0.00020273,2]
[378665779,1754950255171,-151.0,0.00020273,2]
[378665780,1754950255184,-151.0,0.00020273,2]
[378665781,1754950255196,-151.0,0.00020273,2]
[378665782,1754950255206,-151.0,0.00020273,2]
[378665783,1754950255216,-157.810565,0.00020273,2]
[378665784,1754950255226,-151.0,0.00020273,2]
[378665785,1754950255236,-151.0,0.00020273,2]
[378665786,1754950255247,-151.0,0.00020273,2]
[378665787,1754950255260,-460.0,0.00020273,2]
[378665788,1754950255272,-460.0,0.00020273,2]
[378665789,1754950255284,-460.0,0.00020273,2]
[378665790,1754950255294,-460.0,0.00020273,2]
[378665791,1754950255304,-460.0,0.00020273,2]
[378665792,1754950255314,-460.0,0.00020273,2]
[378665793,1754950255325,-460.0,0.00020273,2]
[378665794,1754950255336,-480.72,0.00020273,2]
[378665795,1754950255347,-460.0,0.00020273,2]
[378665796,1754950255357,-460.0,0.00020273,2]
[378665797,1754950255368,-2434.57,0.00020273,2]
[378665798,1754950255378,-460.0,0.00020273,2]
[378665799,1754950255389,-460.0,0.00020273,2]
[378665800,1754950255399,-151.0,0.00020273,2]
[378665801,1754950255410,-289.765563,0.00020273,2]
[378665802,1754950255420,-460.0,0.00020273,2]
[378665803,1754950255431,-253.711868,0.00020273,2]
[378665804,1754950255442,-253.711868,0.00020273,2]
[378665805,1754950255452,-253.711868,0.00020273,2]
[378665806,1754950255462,-253.711868,0.00020273,2]
[378665807,1754950255474,-460.0,0.00020273,2]
[378665808,1754950255487,-460.0,0.00020273,2]
[378665809,1754950255498,-460.0,0.00020273,2]
[378665810,1754950255509,-1160.16,0.00020273,2]
[378665811,1754950255520,-460.0,0.00020273,2]
[378665812,1754950255530,-877.59,0.00020273,2]
[378665813,1754950255541,-285.02614921,0.00020273,2]
[378665814,1754950255552,-460.0,0.00020273,2]
[378665815,1754950255563,-460.0,0.00020273,2]
[378665816,1754950255574,-524.33,0.00020273,2]
[378665817,1754950255584,-460.0,0.00020273,2]
[378665818,1754950255595,-679.67,0.00020273,2]
[378665819,1754950255606,-460.0,0.00020273,2]
[378665820,1754950255616,-460.0,0.00020273,2]
[378665821,1754950255629,-460.0,0.00020273,2]
[378665822,1754950255643,-261.76958362,0.00020273,2]
[378665823,1754950255654,-594.28,0.00020273,2]
[378665824,1754950255664,-601.09,0.00020273,2]
[378665825,1754950255675,-151.0,0.00020273,2]
[378665826,1754950255687,-151.0,0.00020273,2]
[378665827,1754950255697,-151.0,0.00020273,2]
[378665828,1754950255708,-500.0,0.00020273,2]
[378665829,1754950255719,-500.0,0.00020273,2]
[378665830,1754950255729,-2334.64,0.00020273,2]
[378665831,1754950255740,-201.70822039,0.00020273,2]
[378665832,1754950255750,-460.0,0.00020273,2]
[378665833,1754950255761,-151.0,0.00020273,2]
[378665834,1754950255772,-151.0,0.00020273,2]
[378665835,1754950255782,-460.0,0.00020273,2]
[378665836,1754950255792,-151.0,0.00020273,2]
[378665837,1754950255803,-151.0,0.00020273,2]
[378665838,1754950255813,-151.0,0.00020273,2]
[378665839,1754950255824,-746.73,0.00020273,2]
[378665840,1754950255835,-151.0,0.00020273,2]
[378665841,1754950255845,-460.0,0.00020273,2]
[378665842,1754950255856,-460.0,0.00020273,2]
[378665843,1754950255866,-460.0,0.00020273,2]
[378665844,1754950255878,-460.0,0.00020273,2]
[378665845,1754950255888,-460.0,0.00020273,2]
[378665846,1754950255901,-460.0,0.00020273,2]
[378665847,1754950255912,-468.8,0.00020273,2]
[378665848,1754950255922,-460.0,0.00020273,2]
[378665849,1754950255933,-460.0,0.00020273,2]
[378665850,1754950255944,-460.0,0.00020273,2]
[378665851,1754950255954,-460.0,0.00020273,2]
[378665852,1754950255965,-551.71,0.00020273,2]
[378665853,1754950255975,-469.63,0.00020273,2]
[378665854,1754950255986,-460.0,0.00020273,2]
[378665855,1754950255996,-897.91,0.00020273,2]
[378665856,1754950256006,-1076.44,0.00020273,2]
[378665857,1754950256016,-460.0,0.00020273,2]
[378665858,1754950256027,-573.02409208,0.00020273,2]
[378665859,1754950256037,-460.0,0.00020273,2]
[378665860,1754950256047,-622.52,0.00020273,2]
[378665861,1754950256058,-460.0,0.00020273,2]
[378665862,1754950256069,-912.26,0.00020273,2]
[378665863,1754950256079,-460.0,0.00020273,2]
[378665864,1754950256090,-460.0,0.00020273,2]
[378665865,1754950256100,-460.0,0.00020273,2]
[378665866,1754950256111,-954.960379,0.00020273,2]
[378665867,1754950256123,-460.0,0.00020273,2]
[378665868,1754950256133,-483.50649221,0.00020273,2]
[378665869,1754950256143,-460.0,0.00020273,2]
[378665870,1754950256154,-538.8,0.00020273,2]
[378665871,1754950256164,-241.448217,0.00020273,2]
[378665872,1754950256175,-241.448217,0.00020273,2]
[378665873,1754950256187,-4600.42,0.00020273,2]
[378665874,1754950256198,-241.448217,0.00020273,2]
[378665875,1754950256208,-241.448217,0.00020273,2]
[378665876,1754950256219,-460.0,0.00020273,2]
[378665877,1754950256230,-460.0,0.00020273,2]
[378665878,1754950256241,-460.0,0.00020273,2]
[378665879,1754950256251,-3120.27,0.00020273,2]
[378665880,1754950256261,-460.0,0.00020273,2]
[378665881,1754950256272,-460.0,0.00020273,2]
[378665882,1754950256283,-1262.73,0.00020273,2]
[378665883,1754950256294,-563.99,0.00020273,2]
[378665884,1754950256304,-1763.437769,0.00020273,2]
[378665885,1754950256315,-1763.437769,0.00020273,2]
[378665886,1754950256325,-151.0,0.00020273,2]
[378665887,1754950256336,-1763.437769,0.00020273,2]
[378665888,1754950256347,-1763.437769,0.00020273,2]
[378665889,1754950256357,-561.52,0.00020273,2]
[378665890,1754950256368,-460.0,0.00020273,2]
[378665891,1754950256379,-460.0,0.00020273,2]
[378665892,1754950256389,-460.0,0.00020273,2]
[378665893,1754950256400,-151.0,0.00020273,2]
[378665894,1754950256410,-460.0,0.00020273,2]
[378665895,1754950256422,-761.03,0.00020273,2]
[378665896,1754950256432,-460.0,0.00020273,2]
[378665897,1754950256443,-634.09,0.00020273,2]
[378665898,1754950256453,-460.0,0.00020273,2]
[378665899,1754950256464,-460.0,0.00020273,2]
[378665900,1754950256474,-460.0,0.00020273,2]
[378665901,1754950256485,-500.0,0.00020273,2]
[378665902,1754950256495,-826.21,0.00020273,2]
[378665903,1754950256506,-197.069922,0.00020273,2]
[378665904,1754950256516,-197.069922,0.00020273,2]
[378665905,1754950256527,-197.069922,0.00020273,2]
[378665906,1754950256546,-197.069922,0.00020273,2]
[378665907,1754950256559,-1045.81,0.00020273,2]
[378665908,1754950256570,-943.82,0.00020273,2]
[378665909,1754950256580,-3701.3,0.00020273,2]
[378665910,1754950256591,-460.0,0.00020273,2]
[378665911,1754950256601,-809.7,0.00020273,2]
[378665912,1754950256612,-643.86,0.00020273,2]
[378665913,1754950256623,-2906.3,0.00020273,2]
[378665914,1754950256636,-460.0,0.00020273,2]
[378665915,1754950256647,-1487.59,0.00020273,2]
[378665916,1754950256658,-550.62,0.00020273,2]
[378665917,1754950256668,-494.87940243,0.00020273,2]
[378665918,1754950256680,-152.69560173,0.00020273,2]
[378665919,1754950256690,-460.0,0.00020273,2]
[378665920,1754950256701,-500.0,0.00020273,2]
[378665921,1754950256713,-151.0,0.00020273,2]
[378665922,1754950256726,-500.0,0.00020273,2]
[378665923,1754950256737,-460.0,0.00020273,2]
[378665924,1754950256748,-460.0,0.00020273,2]
[378665925,1754950256759,-1174.59,0.00020273,2]
[378665926,1754950256769,-246.73992829,0.00020273,2]
[378665927,1754950256779,-151.0,0.00020273,2]
[378665928,1754950256789,-151.0,0.00020273,2]
[378665929,1754950256799,-460.0,0.00020273,2]
[378665930,1754950256809,-460.0,0.00020273,2]
[378665931,1754950256819,-460.0,0.00020273,2]
[378665932,1754950256829,-282.58641333,0.00020273,2]
[378665933,1754950256839,-151.0,0.00020273,2]
[378665934,1754950256849,-941.15,0.00020273,2]
[378665935,1754950256859,-500.0,0.00020273,2]
[378665936,1754950256869,-460.0,0.00020273,2]
[378665937,1754950256880,-1048.49,0.00020273,2]
[378665938,1754950256890,-500.0,0.00020273,2]
[378665939,1754950256901,-533.13,0.00020273,2]
[378665940,1754950256912,-2881.89,0.00020273,2]
[378665941,1754950256923,-806.46,0.00020273,2]
[378665942,1754950256935,-460.0,0.00020273,2]
[378665943,1754950256946,-460.0,0.00020273,2]
[378665944,1754950256955,-525.82,0.00020273,2]
[378665945,1754950256966,-487.87,0.00020273,2]
[378665946,1754950256975,-207.40387205,0.00020273,2]
[378665947,1754950256986,-460.0,0.00020273,2]
[378665948,1754950256996,-460.0,0.00020273,2]
[378665949,1754950257006,-151.0,0.00020273,2]
[378665950,1754950257016,-2299.09,0.00020273,2]
[378665951,1754950257027,-460.0,0.00020273,2]
[378665952,1754950257299,-460.0,0.00020273,2]
[378665953,1754950257319,-591.88,0.00020273,2]
[378665954,1754950257333,-460.0,0.00020273,2]
[378665955,1754950257342,-460.0,0.00020273,2]
[378665956,1754950257352,-941.59,0.00020273,2]
[378665957,1754950257361,-460.0,0.00020273,2]
[378665958,1754950257370,-1450.42,0.00020273,2]
[378665959,1754950257380,-890.16,0.00020273,2]
[378665960,1754950257389,-466.25,0.00020273,2]
[378665961,1754950257398,-1160.53,0.00020273,2]
[378665962,1754950257408,-1643.29,0.00020273,2]
[378665963,1754950257417,-1075.94,0.00020273,2]
[378665964,1754950257426,-460.0,0.00020273,2]
[378665965,1754950257435,-460.0,0.00020273,2]
[378665966,1754950257444,-555.21,0.00020273,2]
[378665967,1754950257453,-151.858018,0.00020273,2]